[Event "Titled Tuesday Blitz March 21 Late 2023"]
[White "Svane, Rasmus"]
[Black "Carlsen, Magnus"]
[WhiteFideId "4657101"]
[BlackFideId "1503014"]
[WhiteElo "2597"]
[BlackElo "2852"]
[Result "1/2-1/2"]
[Round "10"]
[TimeControl "180+2"]
[Date "2023.03.21"]
[WhiteClock "0:00:08"]
[BlackClock "0:00:09"]

1. Nf3 {[%clk 0:03:00]}  Nf6 {[%clk 0:02:34]} 2. g3 {[%clk 0:02:51]}  b6 {[%clk 0:02:33]} 3. Bg2 {[%clk 0:02:49]}  Bb7 {[%clk 0:02:34]} 4. O-O {[%clk 0:02:49]}  g6 {[%clk 0:02:34]} 5. d4 {[%clk 0:02:49]}  Bg7 {[%clk 0:02:34]} 6. c4 {[%clk 0:02:49]}  O-O {[%clk 0:02:34]} 7. Re1 {[%clk 0:02:50]}  e6 {[%clk 0:02:34]} 8. Bf4 {[%clk 0:02:46]}  d6 {[%clk 0:02:25]} 9. Qc2 {[%clk 0:02:46]}  Nc6 {[%clk 0:02:04]} 10. Nc3 {[%clk 0:02:41]}  h6 {[%clk 0:01:49]} 11. e4 {[%clk 0:02:38]}  g5 {[%clk 0:01:31]} 12. Be3 {[%clk 0:02:38]}  Ng4 {[%clk 0:01:31]} 13. Rad1 {[%clk 0:02:08]}  Nxe3 {[%clk 0:01:31]} 14. fxe3 {[%clk 0:02:08]}  Ne7 {[%clk 0:01:31]} 15. e5 {[%clk 0:01:55]}  Qd7 {[%clk 0:01:19]} 16. Nxg5 {[%clk 0:01:52]}  hxg5 {[%clk 0:01:14]} 17. Bxb7 {[%clk 0:01:53]}  Rad8 {[%clk 0:01:14]} 18. exd6 {[%clk 0:01:53]}  cxd6 {[%clk 0:01:13]} 19. Bg2 {[%clk 0:01:53]}  f5 {[%clk 0:01:12]} 20. Qa4 {[%clk 0:01:39]}  Qxa4 {[%clk 0:01:10]} 21. Nxa4 {[%clk 0:01:40]}  Rd7 {[%clk 0:01:07]} 22. b3 {[%clk 0:01:37]}  Rc8 {[%clk 0:01:07]} 23. Nb2 {[%clk 0:01:36]}  b5 {[%clk 0:01:01]} 24. Rc1 {[%clk 0:01:33]}  bxc4 {[%clk 0:01:01]} 25. Rxc4 {[%clk 0:01:31]}  d5 {[%clk 0:00:59]} 26. Rxc8+ {[%clk 0:01:28]}  Nxc8 {[%clk 0:01:00]} 27. Rc1 {[%clk 0:01:28]}  Nd6 {[%clk 0:01:00]} 28. Nd3 {[%clk 0:01:29]}  Kf7 {[%clk 0:00:59]} 29. Kf2 {[%clk 0:01:26]}  Ne4+ {[%clk 0:00:42]} 30. Ke2 {[%clk 0:01:24]}  Bf6 {[%clk 0:00:34]} 31. Rc6 {[%clk 0:01:24]}  g4 {[%clk 0:00:28]} 32. b4 {[%clk 0:01:15]}  Rb7 {[%clk 0:00:27]} 33. a4 {[%clk 0:01:11]}  Be7 {[%clk 0:00:13]} 34. b5 {[%clk 0:01:10]}  Nd6 {[%clk 0:00:09]} 35. Nc5 {[%clk 0:01:07]}  Rb8 {[%clk 0:00:09]} 36. Rc7 {[%clk 0:01:05]}  Ra8 {[%clk 0:00:10]} 37. Kd3 {[%clk 0:00:56]}  Ne8 {[%clk 0:00:07]} 38. Rc6 {[%clk 0:00:54]}  Nd6 {[%clk 0:00:07]} 39. Ra6 {[%clk 0:00:48]}  Rh8 {[%clk 0:00:07]} 40. Rxa7 {[%clk 0:00:41]}  Rxh2 {[%clk 0:00:07]} 41. Bf1 {[%clk 0:00:41]}  Nc4 {[%clk 0:00:06]} 42. a5 {[%clk 0:00:28]}  Rb2 {[%clk 0:00:01]} 43. b6 {[%clk 0:00:28]}  Nxa5 {[%clk 0:00:02]} 44. Rxa5 {[%clk 0:00:25]}  Rxb6 {[%clk 0:00:02]} 45. Be2 {[%clk 0:00:23]}  Rc6 {[%clk 0:00:01]} 46. Kd2 {[%clk 0:00:21]}  Bd6 {[%clk 0:00:01]} 47. Ra7+ {[%clk 0:00:20]}  Rc7 {[%clk 0:00:02]} 48. Rxc7+ {[%clk 0:00:18]}  Bxc7 {[%clk 0:00:03]} 49. Ba6 {[%clk 0:00:18]}  e5 {[%clk 0:00:02]} 50. Bc8 {[%clk 0:00:15]}  exd4 {[%clk 0:00:02]} 51. exd4 {[%clk 0:00:14]}  Kf6 {[%clk 0:00:01]} 52. Nd7+ {[%clk 0:00:14]}  Ke7 {[%clk 0:00:02]} 53. Ne5 {[%clk 0:00:14]}  Kf6 {[%clk 0:00:03]} 54. Nd7+ {[%clk 0:00:08]}  Ke7 {[%clk 0:00:03]} 55. Nc5 {[%clk 0:00:08]}  Kf6 {[%clk 0:00:03]} 56. Bb7 {[%clk 0:00:06]}  Bxg3 {[%clk 0:00:04]} 57. Bxd5 {[%clk 0:00:07]}  Bd6 {[%clk 0:00:04]} 58. Nd3 {[%clk 0:00:07]}  f4 {[%clk 0:00:04]} 59. Ke2 {[%clk 0:00:06]}  Kf5 {[%clk 0:00:05]} 60. Bc6 {[%clk 0:00:05]}  Be7 {[%clk 0:00:04]} 61. Bd7+ {[%clk 0:00:06]}  Ke4 {[%clk 0:00:04]} 62. Nf2+ {[%clk 0:00:06]}  Kxd4 {[%clk 0:00:05]} 63. Nxg4 {[%clk 0:00:06]}  Bd6 {[%clk 0:00:05]} 64. Kf3 {[%clk 0:00:07]}  Kd5 {[%clk 0:00:06]} 65. Bf5 {[%clk 0:00:07]}  Kd4 {[%clk 0:00:07]} 66. Be4 {[%clk 0:00:07]}  Kc5 {[%clk 0:00:07]} 67. Nf6 {[%clk 0:00:07]}  Kd4 {[%clk 0:00:08]} 68. Nh5 {[%clk 0:00:08]}  Be5 {[%clk 0:00:08]} 69. Nxf4 {[%clk 0:00:08]}  Bxf4 {[%clk 0:00:09]} 1/2-1/2


[Site "https://www.chess.com"]

[Event "Titled Tuesday Blitz March 21 Late 2023"]
[White "Fedoseev, Vladimir"]
[Black "Bluebaum, Matthias"]
[WhiteFideId "24130737"]
[BlackFideId "24651516"]
[WhiteElo "2752"]
[BlackElo "2638"]
[Result "1-0"]
[Round "10"]
[TimeControl "180+2"]
[Date "2023.03.21"]
[WhiteClock "0:00:32"]
[BlackClock "0:00:01"]

1. e4 {[%clk 0:02:53]}  e6 {[%clk 0:03:00]} 2. d4 {[%clk 0:02:52]}  d5 {[%clk 0:03:01]} 3. e5 {[%clk 0:02:50]}  c5 {[%clk 0:03:01]} 4. c3 {[%clk 0:02:50]}  Nc6 {[%clk 0:03:02]} 5. Nf3 {[%clk 0:02:51]}  Nge7 {[%clk 0:03:02]} 6. Bd3 {[%clk 0:02:44]}  cxd4 {[%clk 0:03:03]} 7. cxd4 {[%clk 0:02:43]}  Nf5 {[%clk 0:03:03]} 8. Bxf5 {[%clk 0:02:33]}  exf5 {[%clk 0:03:04]} 9. Nc3 {[%clk 0:02:32]}  Be7 {[%clk 0:03:00]} 10. h4 {[%clk 0:02:31]}  O-O {[%clk 0:03:00]} 11. Bg5 {[%clk 0:02:28]}  f6 {[%clk 0:03:00]} 12. exf6 {[%clk 0:02:28]}  Bxf6 {[%clk 0:03:01]} 13. O-O {[%clk 0:02:21]}  Bxg5 {[%clk 0:03:00]} 14. hxg5 {[%clk 0:02:15]}  f4 {[%clk 0:02:57]} 15. Qb3 {[%clk 0:02:15]}  Bg4 {[%clk 0:02:37]} 16. Nh2 {[%clk 0:01:25]}  Qxg5 {[%clk 0:02:07]} 17. Ne4 {[%clk 0:01:21]}  Qh5 {[%clk 0:01:31]} 18. Nxg4 {[%clk 0:01:20]}  Nxd4 {[%clk 0:01:25]} 19. Qd1 {[%clk 0:01:20]}  Kh8 {[%clk 0:00:51]} 20. Nc3 {[%clk 0:01:09]}  Nf5 {[%clk 0:00:31]} 21. Ne5 {[%clk 0:01:06]}  Qh6 {[%clk 0:00:10]} 22. Qxd5 {[%clk 0:01:05]}  Qf6 {[%clk 0:00:11]} 23. Ne4 {[%clk 0:01:01]}  Qe7 {[%clk 0:00:10]} 24. Rad1 {[%clk 0:00:52]}  Rae8 {[%clk 0:00:08]} 25. Nd7 {[%clk 0:00:48]}  Rf7 {[%clk 0:00:03]} 26. Ng5 {[%clk 0:00:46]}  Qxg5 {[%clk 0:00:02]} 27. Qxf7 {[%clk 0:00:46]}  Rg8 {[%clk 0:00:02]} 28. Qd5 {[%clk 0:00:36]}  h6 {[%clk 0:00:02]} 29. Ne5 {[%clk 0:00:35]}  Kh7 {[%clk 0:00:02]} 30. Nf3 {[%clk 0:00:35]}  Qf6 {[%clk 0:00:02]} 31. Rfe1 {[%clk 0:00:34]}  Rf8 {[%clk 0:00:02]} 32. Re5 {[%clk 0:00:33]}  Qg6 {[%clk 0:00:02]} 33. Qe4 {[%clk 0:00:33]}  Kh8 {[%clk 0:00:02]} 34. Rdd5 {[%clk 0:00:33]}  Nh4 {[%clk 0:00:01]} 35. Nxh4 {[%clk 0:00:32]} 1-0


[Site "https://www.chess.com"]

[Event "Titled Tuesday Blitz March 21 Late 2023"]
[White "Sarana, Alexey"]
[Black "Zierk, Steven"]
[WhiteFideId "24133795"]
[BlackFideId "2034255"]
[WhiteElo "2714"]
[BlackElo "2494"]
[Result "1-0"]
[Round "10"]
[TimeControl "180+2"]
[Date "2023.03.21"]
[WhiteClock "0:00:03"]
[BlackClock "0:00:01"]

1. d4 {[%clk 0:03:00]}  e6 {[%clk 0:03:00]} 2. c4 {[%clk 0:03:00]}  f5 {[%clk 0:03:00]} 3. Nf3 {[%clk 0:02:57]}  Nf6 {[%clk 0:03:00]} 4. g3 {[%clk 0:02:57]}  d5 {[%clk 0:03:00]} 5. Bg2 {[%clk 0:02:57]}  Bd6 {[%clk 0:03:00]} 6. b3 {[%clk 0:02:56]}  c6 {[%clk 0:03:00]} 7. O-O {[%clk 0:02:55]}  Qe7 {[%clk 0:03:00]} 8. a4 {[%clk 0:02:54]}  a5 {[%clk 0:02:59]} 9. Ba3 {[%clk 0:02:55]}  Bxa3 {[%clk 0:02:59]} 10. Nxa3 {[%clk 0:02:54]}  O-O {[%clk 0:02:58]} 11. Nc2 {[%clk 0:02:53]}  b6 {[%clk 0:02:58]} 12. Ne3 {[%clk 0:02:48]}  Na6 {[%clk 0:02:54]} 13. Ne5 {[%clk 0:02:45]}  Nb4 {[%clk 0:02:54]} 14. Qc1 {[%clk 0:02:41]}  Bb7 {[%clk 0:02:49]} 15. f4 {[%clk 0:02:35]}  Rac8 {[%clk 0:02:38]} 16. Qb2 {[%clk 0:02:29]}  c5 {[%clk 0:02:35]} 17. cxd5 {[%clk 0:02:30]}  Nfxd5 {[%clk 0:02:32]} 18. N3c4 {[%clk 0:02:29]}  cxd4 {[%clk 0:02:27]} 19. Qxd4 {[%clk 0:02:30]}  Nc2 {[%clk 0:02:26]} 20. Qf2 {[%clk 0:02:20]}  Nxa1 {[%clk 0:02:24]} 21. Rxa1 {[%clk 0:02:21]}  Rfd8 {[%clk 0:02:14]} 22. Nxb6 {[%clk 0:02:10]}  Nxb6 {[%clk 0:02:13]} 23. Qxb6 {[%clk 0:02:11]}  Bxg2 {[%clk 0:02:10]} 24. Kxg2 {[%clk 0:02:12]}  Rd2 {[%clk 0:02:06]} 25. Re1 {[%clk 0:02:05]}  Rd5 {[%clk 0:01:44]} 26. Nc4 {[%clk 0:01:59]}  h5 {[%clk 0:01:39]} 27. e4 {[%clk 0:01:58]}  fxe4 {[%clk 0:01:20]} 28. Rxe4 {[%clk 0:01:59]}  Re8 {[%clk 0:01:17]} 29. Qc6 {[%clk 0:01:56]}  h4 {[%clk 0:01:11]} 30. Kh3 {[%clk 0:01:55]}  hxg3 {[%clk 0:01:11]} 31. hxg3 {[%clk 0:01:56]}  Qf7 {[%clk 0:01:07]} 32. Kg2 {[%clk 0:01:56]}  Rd3 {[%clk 0:01:01]} 33. Nd6 {[%clk 0:01:46]}  Rd2+ {[%clk 0:01:01]} 34. Kf1 {[%clk 0:01:35]}  Rxd6 {[%clk 0:00:49]} 35. Qxd6 {[%clk 0:01:36]}  Qf5 {[%clk 0:00:49]} 36. Qd3 {[%clk 0:01:31]}  Qh3+ {[%clk 0:00:46]} 37. Kg1 {[%clk 0:01:31]}  Kf7 {[%clk 0:00:35]} 38. Re2 {[%clk 0:01:16]}  Rh8 {[%clk 0:00:31]} 39. Qf3 {[%clk 0:01:16]}  Qf5 {[%clk 0:00:29]} 40. Qb7+ {[%clk 0:01:07]}  Kf6 {[%clk 0:00:27]} 41. Qe4 {[%clk 0:01:06]}  Qh3 {[%clk 0:00:16]} 42. Kf2 {[%clk 0:01:01]}  Qg4 {[%clk 0:00:14]} 43. Qf3 {[%clk 0:00:52]}  Qf5 {[%clk 0:00:13]} 44. Qc3+ {[%clk 0:00:51]}  Kf7 {[%clk 0:00:13]} 45. Qc7+ {[%clk 0:00:47]}  Kg6 {[%clk 0:00:13]} 46. Qe5 {[%clk 0:00:44]}  Rh2+ {[%clk 0:00:13]} 47. Kf3 {[%clk 0:00:16]}  Qd3+ {[%clk 0:00:10]} 48. Qe3 {[%clk 0:00:16]}  Qd1 {[%clk 0:00:07]} 49. Qxe6+ {[%clk 0:00:15]}  Kh7 {[%clk 0:00:08]} 50. Qf5+ {[%clk 0:00:13]}  Kh8 {[%clk 0:00:07]} 51. Qc8+ {[%clk 0:00:12]}  Kh7 {[%clk 0:00:07]} 52. Qc4 {[%clk 0:00:12]}  Kh8 {[%clk 0:00:03]} 53. f5 {[%clk 0:00:10]}  Qf1+ {[%clk 0:00:01]} 54. Ke3 {[%clk 0:00:11]}  Rxe2+ {[%clk 0:00:02]} 55. Qxe2 {[%clk 0:00:11]}  Qxf5 {[%clk 0:00:03]} 56. Qd3 {[%clk 0:00:11]}  Qe6+ {[%clk 0:00:03]} 57. Kf3 {[%clk 0:00:11]}  Qf6+ {[%clk 0:00:03]} 58. Kg4 {[%clk 0:00:11]}  Qe6+ {[%clk 0:00:03]} 59. Kf4 {[%clk 0:00:11]}  Qf6+ {[%clk 0:00:03]} 60. Ke3 {[%clk 0:00:11]}  Qe6+ {[%clk 0:00:03]} 61. Kd2 {[%clk 0:00:11]}  Qh6+ {[%clk 0:00:04]} 62. Kc2 {[%clk 0:00:10]}  Qc6+ {[%clk 0:00:04]} 63. Kb2 {[%clk 0:00:09]}  Qc5 {[%clk 0:00:04]} 64. Qd8+ {[%clk 0:00:07]}  Kh7 {[%clk 0:00:04]} 65. Qh4+ {[%clk 0:00:07]}  Kg6 {[%clk 0:00:05]} 66. Qf4 {[%clk 0:00:06]}  Kh5 {[%clk 0:00:04]} 67. Qh4+ {[%clk 0:00:05]}  Kg6 {[%clk 0:00:04]} 68. Qg4+ {[%clk 0:00:05]}  Kh6 {[%clk 0:00:04]} 69. Qf4+ {[%clk 0:00:05]}  g5 {[%clk 0:00:04]} 70. Qf3 {[%clk 0:00:03]}  Qd4+ {[%clk 0:00:03]} 71. Kc2 {[%clk 0:00:04]}  Qc5+ {[%clk 0:00:03]} 72. Kd2 {[%clk 0:00:04]}  Qd4+ {[%clk 0:00:03]} 73. Kc2 {[%clk 0:00:04]}  Qc5+ {[%clk 0:00:03]} 74. Kd1 {[%clk 0:00:02]}  Qd4+ {[%clk 0:00:03]} 75. Ke2 {[%clk 0:00:03]}  Qb2+ {[%clk 0:00:03]} 76. Kf1 {[%clk 0:00:03]}  Qb1+ {[%clk 0:00:02]} 77. Kg2 {[%clk 0:00:03]}  Qc2+ {[%clk 0:00:02]} 78. Kh3 {[%clk 0:00:04]}  Qc8+ {[%clk 0:00:03]} 79. g4 {[%clk 0:00:04]}  Qc1 {[%clk 0:00:02]} 80. Kg2 {[%clk 0:00:02]}  Qb2+ {[%clk 0:00:01]} 81. Kg3 {[%clk 0:00:02]}  Qe5+ {[%clk 0:00:01]} 82. Kh3 {[%clk 0:00:03]} 1-0


[Site "https://www.chess.com"]

[Event "Titled Tuesday Blitz March 21 Late 2023"]
[White "Van Foreest, Jorden"]
[Black "Dardha, Daniel"]
[WhiteFideId "1039784"]
[BlackFideId "240990"]
[WhiteElo "2633"]
[BlackElo "2581"]
[Result "1-0"]
[Round "10"]
[TimeControl "180+2"]
[Date "2023.03.21"]
[WhiteClock "0:00:06"]
[BlackClock "0:00:01"]

1. e4 {[%clk 0:03:00]}  c5 {[%clk 0:02:57]} 2. Nf3 {[%clk 0:02:59]}  d6 {[%clk 0:02:57]} 3. d4 {[%clk 0:02:58]}  Nf6 {[%clk 0:02:58]} 4. Nc3 {[%clk 0:02:57]}  cxd4 {[%clk 0:02:58]} 5. Nxd4 {[%clk 0:02:58]}  Nc6 {[%clk 0:02:58]} 6. Bb5 {[%clk 0:02:57]}  Bd7 {[%clk 0:02:58]} 7. Be3 {[%clk 0:02:57]}  g6 {[%clk 0:02:48]} 8. f3 {[%clk 0:02:57]}  Bg7 {[%clk 0:02:48]} 9. Qd2 {[%clk 0:02:57]}  h5 {[%clk 0:02:48]} 10. O-O-O {[%clk 0:02:57]}  Rc8 {[%clk 0:02:45]} 11. Kb1 {[%clk 0:02:55]}  Ne5 {[%clk 0:02:41]} 12. Be2 {[%clk 0:02:56]}  Nc4 {[%clk 0:02:33]} 13. Bxc4 {[%clk 0:02:56]}  Rxc4 {[%clk 0:02:34]} 14. h3 {[%clk 0:02:52]}  h4 {[%clk 0:02:25]} 15. Rhe1 {[%clk 0:02:51]}  Rh5 {[%clk 0:02:23]} 16. Nde2 {[%clk 0:02:43]}  Ra5 {[%clk 0:01:46]} 17. Bd4 {[%clk 0:02:32]}  Be6 {[%clk 0:01:31]} 18. Nc1 {[%clk 0:02:26]}  Ra6 {[%clk 0:01:18]} 19. Nb3 {[%clk 0:02:16]}  Qc8 {[%clk 0:01:11]} 20. Qg5 {[%clk 0:02:08]}  Rac6 {[%clk 0:00:52]} 21. Qxh4 {[%clk 0:02:01]}  Rxc3 {[%clk 0:00:50]} 22. bxc3 {[%clk 0:01:58]}  a5 {[%clk 0:00:44]} 23. Nxa5 {[%clk 0:01:38]}  Rxc3 {[%clk 0:00:40]} 24. Nb3 {[%clk 0:01:31]}  Rc4 {[%clk 0:00:29]} 25. Qf2 {[%clk 0:01:31]}  Ra4 {[%clk 0:00:24]} 26. c3 {[%clk 0:01:03]}  Qc4 {[%clk 0:00:17]} 27. Qe2 {[%clk 0:01:00]}  Qc6 {[%clk 0:00:16]} 28. g4 {[%clk 0:01:00]}  Bc4 {[%clk 0:00:13]} 29. Qb2 {[%clk 0:00:56]}  Bh6 {[%clk 0:00:05]} 30. Be3 {[%clk 0:00:48]}  Bxe3 {[%clk 0:00:05]} 31. Rxe3 {[%clk 0:00:49]}  Nd7 {[%clk 0:00:06]} 32. f4 {[%clk 0:00:33]}  Ra6 {[%clk 0:00:04]} 33. e5 {[%clk 0:00:33]}  dxe5 {[%clk 0:00:04]} 34. fxe5 {[%clk 0:00:34]}  Nb6 {[%clk 0:00:03]} 35. Qd2 {[%clk 0:00:30]}  Nd5 {[%clk 0:00:04]} 36. Rf3 {[%clk 0:00:16]}  Qb5 {[%clk 0:00:04]} 37. Qb2 {[%clk 0:00:13]}  Kf8 {[%clk 0:00:02]} 38. e6 {[%clk 0:00:13]}  f6 {[%clk 0:00:03]} 39. Qc2 {[%clk 0:00:12]}  Rxa2 {[%clk 0:00:02]} 40. Kxa2 {[%clk 0:00:08]}  Qa4+ {[%clk 0:00:02]} 41. Kb2 {[%clk 0:00:09]}  Qb5 {[%clk 0:00:02]} 42. Rd4 {[%clk 0:00:09]}  Nb6 {[%clk 0:00:02]} 43. Rxc4 {[%clk 0:00:04]}  Nxc4+ {[%clk 0:00:03]} 44. Kc1 {[%clk 0:00:05]}  Qg5+ {[%clk 0:00:02]} 45. Kd1 {[%clk 0:00:03]}  Ne3+ {[%clk 0:00:02]} 46. Rxe3 {[%clk 0:00:03]}  Qxe3 {[%clk 0:00:03]} 47. Qd2 {[%clk 0:00:03]}  Qf3+ {[%clk 0:00:02]} 48. Kc2 {[%clk 0:00:03]}  Kg7 {[%clk 0:00:02]} 49. Nd4 {[%clk 0:00:03]}  Qe4+ {[%clk 0:00:02]} 50. Qd3 {[%clk 0:00:03]}  Qg2+ {[%clk 0:00:02]} 51. Kb3 {[%clk 0:00:03]}  Qh1 {[%clk 0:00:02]} 52. Qb5 {[%clk 0:00:04]}  Qb1+ {[%clk 0:00:02]} 53. Kc4 {[%clk 0:00:04]}  Qe4 {[%clk 0:00:02]} 54. Qd7 {[%clk 0:00:03]}  Kh6 {[%clk 0:00:01]} 55. Qxe7 {[%clk 0:00:03]}  b5+ {[%clk 0:00:02]} 56. Kb4 {[%clk 0:00:03]}  Qb1+ {[%clk 0:00:02]} 57. Kc5 {[%clk 0:00:04]}  Qc1 {[%clk 0:00:02]} 58. Qxf6 {[%clk 0:00:03]}  Qa3+ {[%clk 0:00:02]} 59. Kd5 {[%clk 0:00:03]}  Qa2+ {[%clk 0:00:02]} 60. Kd6 {[%clk 0:00:04]}  Qa3+ {[%clk 0:00:02]} 61. Kd7 {[%clk 0:00:03]}  Qa7+ {[%clk 0:00:02]} 62. Kc6 {[%clk 0:00:04]}  Qa6+ {[%clk 0:00:02]} 63. Kc5 {[%clk 0:00:04]}  Qa3+ {[%clk 0:00:02]} 64. Kxb5 {[%clk 0:00:05]}  Qb2+ {[%clk 0:00:02]} 65. Kc4 {[%clk 0:00:04]}  Qa2+ {[%clk 0:00:03]} 66. Kc5 {[%clk 0:00:04]}  Qa3+ {[%clk 0:00:03]} 67. Kd5 {[%clk 0:00:05]}  Qa2+ {[%clk 0:00:03]} 68. Ke5 {[%clk 0:00:05]}  Qa5+ {[%clk 0:00:01]} 69. Ke4 {[%clk 0:00:05]}  Qa8+ {[%clk 0:00:01]} 70. Ke3 {[%clk 0:00:06]}  Qb8 {[%clk 0:00:01]} 71. Nf5+ {[%clk 0:00:06]} 1-0


[Site "https://www.chess.com"]

[Event "Titled Tuesday Blitz March 21 Late 2023"]
[White "Deac, Bogdan-Daniel"]
[Black "Ibarra Jerez, Jose Carlos"]
[WhiteFideId "1226380"]
[BlackFideId "2226332"]
[WhiteElo "2649"]
[BlackElo "2638"]
[Result "0-1"]
[Round "10"]
[TimeControl "180+2"]
[Date "2023.03.21"]
[WhiteClock "0:00:06"]
[BlackClock "0:00:29"]

1. h3 {[%clk 0:03:00]}  d5 {[%clk 0:02:59]} 2. c4 {[%clk 0:02:57]}  d4 {[%clk 0:02:59]} 3. Nf3 {[%clk 0:02:57]}  Nc6 {[%clk 0:02:59]} 4. d3 {[%clk 0:02:52]}  e5 {[%clk 0:02:58]} 5. g3 {[%clk 0:02:52]}  Bb4+ {[%clk 0:02:52]} 6. Nbd2 {[%clk 0:02:48]}  a5 {[%clk 0:02:53]} 7. Bg2 {[%clk 0:02:48]}  Nf6 {[%clk 0:02:53]} 8. O-O {[%clk 0:02:48]}  O-O {[%clk 0:02:53]} 9. Ne1 {[%clk 0:02:48]}  Re8 {[%clk 0:02:51]} 10. Nc2 {[%clk 0:02:46]}  Bf8 {[%clk 0:02:46]} 11. b3 {[%clk 0:02:14]}  Bf5 {[%clk 0:02:44]} 12. g4 {[%clk 0:01:39]}  Bg6 {[%clk 0:02:42]} 13. Nf3 {[%clk 0:01:38]}  h6 {[%clk 0:02:35]} 14. Re1 {[%clk 0:01:04]}  e4 {[%clk 0:02:24]} 15. dxe4 {[%clk 0:01:03]}  Nxe4 {[%clk 0:02:24]} 16. Nfxd4 {[%clk 0:00:49]}  Nxd4 {[%clk 0:02:09]} 17. Qxd4 {[%clk 0:00:30]}  Bc5 {[%clk 0:01:56]} 18. Qxd8 {[%clk 0:00:29]}  Bxf2+ {[%clk 0:01:56]} 19. Kf1 {[%clk 0:00:29]}  Raxd8 {[%clk 0:01:56]} 20. Bxe4 {[%clk 0:00:30]}  Bxe4 {[%clk 0:01:03]} 21. Kxf2 {[%clk 0:00:29]}  Bxc2 {[%clk 0:01:03]} 22. Bb2 {[%clk 0:00:27]}  a4 {[%clk 0:00:54]} 23. bxa4 {[%clk 0:00:26]}  Re4 {[%clk 0:00:49]} 24. c5 {[%clk 0:00:20]}  Bxa4 {[%clk 0:00:47]} 25. Rab1 {[%clk 0:00:17]}  Rd5 {[%clk 0:00:34]} 26. Rbc1 {[%clk 0:00:12]}  Rd2 {[%clk 0:00:31]} 27. Bc3 {[%clk 0:00:12]}  Rxa2 {[%clk 0:00:31]} 28. Ra1 {[%clk 0:00:10]}  Rc2 {[%clk 0:00:31]} 29. Kf3 {[%clk 0:00:06]}  Bc6 {[%clk 0:00:29]} 0-1


[Site "https://www.chess.com"]

[Event "Titled Tuesday Blitz March 21 Late 2023"]
[White "Zakhartsov, Vladimir"]
[Black "Martinez Alcantara, Jose Eduardo"]
[WhiteFideId "4145097"]
[BlackFideId "3805662"]
[WhiteElo "2521"]
[BlackElo "2712"]
[Result "1-0"]
[Round "10"]
[TimeControl "180+2"]
[Date "2023.03.21"]
[WhiteClock "0:00:15"]
[BlackClock "0:00:03"]

1. e4 {[%clk 0:03:00]}  c5 {[%clk 0:02:58]} 2. Nf3 {[%clk 0:03:01]}  d6 {[%clk 0:02:59]} 3. d4 {[%clk 0:03:00]}  cxd4 {[%clk 0:03:00]} 4. Nxd4 {[%clk 0:03:01]}  Nf6 {[%clk 0:03:00]} 5. Nc3 {[%clk 0:03:00]}  a6 {[%clk 0:03:01]} 6. Bg5 {[%clk 0:03:00]}  Nbd7 {[%clk 0:02:58]} 7. f4 {[%clk 0:02:59]}  e6 {[%clk 0:02:39]} 8. Qf3 {[%clk 0:02:55]}  Qc7 {[%clk 0:02:39]} 9. O-O-O {[%clk 0:02:54]}  Be7 {[%clk 0:02:32]} 10. g4 {[%clk 0:02:47]}  h6 {[%clk 0:02:31]} 11. Bxf6 {[%clk 0:02:45]}  Bxf6 {[%clk 0:02:32]} 12. h4 {[%clk 0:02:44]}  Nf8 {[%clk 0:02:25]} 13. g5 {[%clk 0:02:42]}  Be7 {[%clk 0:02:24]} 14. Kb1 {[%clk 0:02:37]}  Bd7 {[%clk 0:02:24]} 15. f5 {[%clk 0:02:30]}  Qc5 {[%clk 0:02:00]} 16. g6 {[%clk 0:02:14]}  fxg6 {[%clk 0:01:50]} 17. fxe6 {[%clk 0:02:13]}  Nxe6 {[%clk 0:01:50]} 18. Nxe6 {[%clk 0:02:09]}  Bxe6 {[%clk 0:01:51]} 19. Bh3 {[%clk 0:02:09]}  Bxh3 {[%clk 0:01:22]} 20. Qxh3 {[%clk 0:02:10]}  Qc8 {[%clk 0:01:04]} 21. Qg2 {[%clk 0:02:00]}  Qe6 {[%clk 0:00:52]} 22. Nd5 {[%clk 0:01:57]}  O-O {[%clk 0:00:52]} 23. Nc7 {[%clk 0:01:52]}  Qe5 {[%clk 0:00:50]} 24. Nxa8 {[%clk 0:01:49]}  Bf6 {[%clk 0:00:50]} 25. c3 {[%clk 0:01:46]}  Rxa8 {[%clk 0:00:50]} 26. Qxg6 {[%clk 0:01:45]}  b5 {[%clk 0:00:50]} 27. Rd5 {[%clk 0:01:25]}  Qe6 {[%clk 0:00:47]} 28. Qf5 {[%clk 0:01:22]}  Qxf5 {[%clk 0:00:44]} 29. Rxf5 {[%clk 0:01:16]}  Re8 {[%clk 0:00:43]} 30. Rf4 {[%clk 0:01:12]}  h5 {[%clk 0:00:36]} 31. Kc2 {[%clk 0:01:07]}  Kh7 {[%clk 0:00:34]} 32. Kd3 {[%clk 0:01:06]}  Kh6 {[%clk 0:00:34]} 33. Rf5 {[%clk 0:01:05]}  Be5 {[%clk 0:00:30]} 34. Rf7 {[%clk 0:00:57]}  g6 {[%clk 0:00:29]} 35. Rh3 {[%clk 0:00:52]}  Rb8 {[%clk 0:00:24]} 36. Rhf3 {[%clk 0:00:45]}  b4 {[%clk 0:00:23]} 37. Ra7 {[%clk 0:00:45]}  bxc3 {[%clk 0:00:20]} 38. bxc3 {[%clk 0:00:45]}  Rc8 {[%clk 0:00:19]} 39. c4 {[%clk 0:00:44]}  Rb8 {[%clk 0:00:17]} 40. Rxa6 {[%clk 0:00:35]}  Rb1 {[%clk 0:00:17]} 41. Rh3 {[%clk 0:00:32]}  Rc1 {[%clk 0:00:16]} 42. Ra3 {[%clk 0:00:21]}  Ra1 {[%clk 0:00:09]} 43. c5 {[%clk 0:00:18]}  dxc5 {[%clk 0:00:09]} 44. Kc4 {[%clk 0:00:19]}  Bd4 {[%clk 0:00:06]} 45. Kd5 {[%clk 0:00:18]}  Rd1 {[%clk 0:00:06]} 46. Rad3 {[%clk 0:00:17]}  Ra1 {[%clk 0:00:06]} 47. a3 {[%clk 0:00:17]}  Bf6 {[%clk 0:00:04]} 48. e5 {[%clk 0:00:16]}  Be7 {[%clk 0:00:04]} 49. Ke6 {[%clk 0:00:16]}  Bf8 {[%clk 0:00:05]} 50. Kf7 {[%clk 0:00:16]}  Bg7 {[%clk 0:00:04]} 51. e6 {[%clk 0:00:17]}  c4 {[%clk 0:00:04]} 52. Rdf3 {[%clk 0:00:15]}  c3 {[%clk 0:00:04]} 53. Rhg3 {[%clk 0:00:15]}  c2 {[%clk 0:00:01]} 54. Rxg6+ {[%clk 0:00:15]}  Kh7 {[%clk 0:00:02]} 55. Rxg7+ {[%clk 0:00:15]}  Kh6 {[%clk 0:00:03]} 56. Rf6# {[%clk 0:00:15]} 1-0


[Site "https://www.chess.com"]